[Event "*** SCC Grand Prix: Titled Tuesday Blitz"]
[Site "Chess.com"]
[Date "2020.06.09"]
[Round "8"]
[White "GMKrikor"]
[Black "Harry_Rakkel"]
[Result "1-0"]
[WhiteElo "2720"]
[BlackElo "2507"]
[TimeControl "180+1"]
[EndTime "10:36:56 PDT"]
[Termination "GMKrikor won on time"]

1. e4 {[%clk 0:03:00.9]} 1... c5 {[%clk 0:02:59.9]} 2. Nf3 {[%clk 0:02:58.3]}
2... d6 {[%clk 0:02:59.7]} 3. d4 {[%clk 0:02:58.2]} 3... cxd4 {[%clk 0:02:59.4]}
4. Nxd4 {[%clk 0:02:59.1]} 4... Nf6 {[%clk 0:02:59.5]} 5. Nc3 {[%clk 0:02:59]}
5... a6 {[%clk 0:03:00]} 6. Be3 {[%clk 0:02:59.1]} 6... e5 {[%clk 0:02:59.7]} 7.
Nb3 {[%clk 0:02:58.8]} 7... Be7 {[%clk 0:03:00]} 8. f3 {[%clk 0:02:59.1]} 8...
Be6 {[%clk 0:02:59.8]} 9. Qd2 {[%clk 0:02:58.1]} 9... O-O {[%clk 0:03:00.2]} 10.
O-O-O {[%clk 0:02:50.2]} 10... Nbd7 {[%clk 0:03:00.5]} 11. g4 {[%clk 0:02:50.3]}
11... Qc7 {[%clk 0:03:00.4]} 12. g5 {[%clk 0:02:50]} 12... Nh5 {[%clk
0:02:59.8]} 13. Kb1 {[%clk 0:02:50.1]} 13... g6 {[%clk 0:02:59.2]} 14. Rg1
{[%clk 0:02:36.6]} 14... b5 {[%clk 0:02:57.9]} 15. Nd5 {[%clk 0:02:36.1]} 15...
Bxd5 {[%clk 0:02:57.7]} 16. exd5 {[%clk 0:02:37]} 16... Nb6 {[%clk 0:02:53.1]}
17. Na5 {[%clk 0:02:28.2]} 17... Nxd5 {[%clk 0:02:51.5]} 18. Qxd5 {[%clk
0:02:29.1]} 18... Qxa5 {[%clk 0:02:51.3]} 19. Bd3 {[%clk 0:02:21]} 19... Rab8
{[%clk 0:02:49.3]} 20. Rg4 {[%clk 0:02:15.7]} 20... Qc7 {[%clk 0:02:35.2]} 21.
h4 {[%clk 0:02:11.4]} 21... Rfc8 {[%clk 0:02:27.9]} 22. f4 {[%clk 0:01:47.7]}
22... exf4 {[%clk 0:02:24]} 23. Bxf4 {[%clk 0:01:39]} 23... Qd7 {[%clk
0:02:22.9]} 24. Qf3 {[%clk 0:01:29.8]} 24... Bf8 {[%clk 0:02:15.4]} 25. Bc1
{[%clk 0:01:25.6]} 25... Bg7 {[%clk 0:02:14.1]} 26. Be4 {[%clk 0:01:23.5]} 26...
Rc7 {[%clk 0:02:04.1]} 27. Bd5 {[%clk 0:01:22.4]} 27... Re8 {[%clk 0:02:02.4]}
28. Re4 {[%clk 0:01:14.8]} 28... Re5 {[%clk 0:02:01.3]} 29. Rxe5 {[%clk
0:01:07.1]} 29... Bxe5 {[%clk 0:01:59.8]} 30. Bb3 {[%clk 0:00:55.5]} 30... a5
{[%clk 0:01:58.1]} 31. a3 {[%clk 0:00:54.2]} 31... Ng3 {[%clk 0:01:47.9]} 32.
Qa8+ {[%clk 0:00:50.8]} 32... Kg7 {[%clk 0:01:44.9]} 33. Qxa5 {[%clk 0:00:50.5]}
33... Ne2 {[%clk 0:01:39.3]} 34. Be3 {[%clk 0:00:45.1]} 34... Qc6 {[%clk
0:01:27.2]} 35. Qd2 {[%clk 0:00:41.9]} 35... Qf3 {[%clk 0:01:23]} 36. Re1 {[%clk
0:00:29.5]} 36... Ng3 {[%clk 0:01:19]} 37. Qd5 {[%clk 0:00:20.5]} 37... Qg4
{[%clk 0:01:11.2]} 38. Bb6 {[%clk 0:00:20.2]} 38... Re7 {[%clk 0:01:10.8]} 39.
Bd8 {[%clk 0:00:19.7]} 39... Re6 {[%clk 0:00:58.5]} 40. Qb7 {[%clk 0:00:16.5]}
40... Nh5 {[%clk 0:00:34.6]} 41. Bxe6 {[%clk 0:00:12.6]} 41... Qxe6 {[%clk
0:00:35]} 42. Qxb5 {[%clk 0:00:12.7]} 42... Qc8 {[%clk 0:00:32.5]} 43. Rxe5
{[%clk 0:00:08.7]} 43... Qxd8 {[%clk 0:00:29.4]} 44. Re1 {[%clk 0:00:08.1]}
44... h6 {[%clk 0:00:27.8]} 45. a4 {[%clk 0:00:08.3]} 45... hxg5 {[%clk
0:00:27.3]} 46. hxg5 {[%clk 0:00:09.2]} 46... Nf4 {[%clk 0:00:20.8]} 47. a5
{[%clk 0:00:08.6]} 47... d5 {[%clk 0:00:20.1]} 48. a6 {[%clk 0:00:08.2]} 48...
Qc7 {[%clk 0:00:20.1]} 49. Rd1 {[%clk 0:00:07.7]} 49... Qe7 {[%clk 0:00:13.5]}
50. Qb3 {[%clk 0:00:06.7]} 50... Qe2 {[%clk 0:00:11.2]} 51. Rc1 {[%clk
0:00:04.1]} 51... Qxa6 {[%clk 0:00:09.9]} 52. Qe3 {[%clk 0:00:04.2]} 52... Ne6
{[%clk 0:00:08.5]} 53. Qe5+ {[%clk 0:00:03.9]} 53... Kg8 {[%clk 0:00:09]} 54.
Qxd5 {[%clk 0:00:03.9]} 54... Qc8 {[%clk 0:00:07.3]} 55. Qe5 {[%clk 0:00:03.9]}
55... Qd8 {[%clk 0:00:06.8]} 56. Rh1 {[%clk 0:00:03.7]} 56... Ng7 {[%clk
0:00:06.8]} 57. Re1 {[%clk 0:00:03.2]} 57... Ne6 {[%clk 0:00:05.9]} 58. Rh1
{[%clk 0:00:03.5]} 58... Ng7 {[%clk 0:00:06]} 59. b3 {[%clk 0:00:04.1]} 59...
Qa8 {[%clk 0:00:04.3]} 60. Re1 {[%clk 0:00:03.4]} 60... Ne6 {[%clk 0:00:03.8]}
61. Qf6 {[%clk 0:00:03.7]} 61... Qc6 {[%clk 0:00:02.5]} 62. Rxe6 {[%clk
0:00:03.7]} 62... fxe6 {[%clk 0:00:01.5]} 63. Qxg6+ {[%clk 0:00:03.6]} 63... Kf8
{[%clk 0:00:02.4]} 64. Qf6+ {[%clk 0:00:04.5]} 64... Ke8 {[%clk 0:00:02.6]} 65.
g6 {[%clk 0:00:05.1]} 65... Qh1+ {[%clk 0:00:02.2]} 66. Kb2 {[%clk 0:00:05.3]}
1-0

[Event "*** SCC Grand Prix: Titled Tuesday Blitz"]
[Site "Chess.com"]
[Date "2020.06.09"]
[Round "8"]
[White "ShahMatKanal"]
[Black "ChronicUnhappiness"]
[Result "1/2-1/2"]
[WhiteElo "2462"]
[BlackElo "2324"]
[TimeControl "180+1"]
[EndTime "10:36:56 PDT"]
[Termination "Game drawn by repetition"]

1. d4 {[%clk 0:03:00.9]} 1... d5 {[%clk 0:02:59]} 2. c4 {[%clk 0:03:00.9]} 2...
e6 {[%clk 0:02:58.3]} 3. cxd5 {[%clk 0:03:00.8]} 3... exd5 {[%clk 0:02:57.8]} 4.
Nc3 {[%clk 0:03:01.1]} 4... Nf6 {[%clk 0:02:57.4]} 5. Bg5 {[%clk 0:03:01]} 5...
c6 {[%clk 0:02:55]} 6. e3 {[%clk 0:03:01.2]} 6... Bf5 {[%clk 0:02:54.2]} 7. Qf3
{[%clk 0:02:58.6]} 7... Bg6 {[%clk 0:02:50.6]} 8. Bxf6 {[%clk 0:02:58.7]} 8...
Qxf6 {[%clk 0:02:51.2]} 9. Qxf6 {[%clk 0:02:53.7]} 9... gxf6 {[%clk 0:02:52.1]}
10. Kd2 {[%clk 0:02:53.1]} 10... Nd7 {[%clk 0:02:50.4]} 11. Bd3 {[%clk
0:02:49.8]} 11... Bd6 {[%clk 0:02:48.8]} 12. Nge2 {[%clk 0:02:49.6]} 12... a5
{[%clk 0:02:46]} 13. Ng3 {[%clk 0:02:47.4]} 13... Nb6 {[%clk 0:02:43.2]} 14.
Rab1 {[%clk 0:02:30.4]} 14... Nc4+ {[%clk 0:02:38]} 15. Kc2 {[%clk 0:02:30.2]}
15... a4 {[%clk 0:02:36.6]} 16. Nf5 {[%clk 0:02:18.5]} 16... Bxf5 {[%clk
0:02:32.1]} 17. Bxf5 {[%clk 0:02:18.1]} 17... O-O {[%clk 0:01:56.4]} 18. h4
{[%clk 0:02:09.7]} 18... Rfd8 {[%clk 0:01:54.2]} 19. h5 {[%clk 0:02:08.9]} 19...
h6 {[%clk 0:01:52.9]} 20. Rh4 {[%clk 0:02:08.1]} 20... b5 {[%clk 0:01:50.8]} 21.
Re1 {[%clk 0:01:45.8]} 21... b4 {[%clk 0:01:49.1]} 22. Nb1 {[%clk 0:01:43.4]}
22... b3+ {[%clk 0:01:47.2]} 23. axb3 {[%clk 0:01:43.1]} 23... axb3+ {[%clk
0:01:47.3]} 24. Kc1 {[%clk 0:01:35.6]} 24... Ra2 {[%clk 0:01:41.4]} 25. Nd2
{[%clk 0:01:14]} 25... Nxd2 {[%clk 0:01:14]} 26. Kxd2 {[%clk 0:01:14.9]} 26...
Rxb2+ {[%clk 0:01:14.3]} 27. Kc3 {[%clk 0:01:15.1]} 27... Rxf2 {[%clk
0:01:14.1]} 28. Rg4+ {[%clk 0:01:12.1]} 28... Kh8 {[%clk 0:01:13.6]} 29. Bb1
{[%clk 0:01:03]} 29... Rb8 {[%clk 0:01:10.5]} 30. Rd1 {[%clk 0:01:00.2]} 30...
b2 {[%clk 0:01:06.3]} 31. e4 {[%clk 0:00:57.7]} 31... Rf4 {[%clk 0:00:47.6]} 32.
Rxf4 {[%clk 0:00:51]} 32... Bxf4 {[%clk 0:00:48.5]} 33. Rf1 {[%clk 0:00:49.6]}
33... Bg5 {[%clk 0:00:45.3]} 34. Rf2 {[%clk 0:00:41.8]} 34... dxe4 {[%clk
0:00:40.7]} 35. Rxb2 {[%clk 0:00:41.1]} 35... Rxb2 {[%clk 0:00:33.6]} 36. Kxb2
{[%clk 0:00:42]} 36... f5 {[%clk 0:00:32.7]} 37. Kc3 {[%clk 0:00:40.6]} 37...
Kg7 {[%clk 0:00:30.4]} 38. Bc2 {[%clk 0:00:40.4]} 38... Be3 {[%clk 0:00:27.7]}
39. Kc4 {[%clk 0:00:37.9]} 39... Kf6 {[%clk 0:00:25.7]} 40. Ba4 {[%clk
0:00:36.4]} 40... Kg5 {[%clk 0:00:21.8]} 41. Bxc6 {[%clk 0:00:35.9]} 41... Kxh5
{[%clk 0:00:21.9]} 42. d5 {[%clk 0:00:31.2]} 42... Kg4 {[%clk 0:00:19.2]} 43.
Bd7 {[%clk 0:00:21.2]} 43... h5 {[%clk 0:00:17.8]} 44. d6 {[%clk 0:00:20.2]}
44... h4 {[%clk 0:00:17.9]} 45. Kd5 {[%clk 0:00:13.7]} 45... Bf4 {[%clk
0:00:16.2]} 46. Bb5 {[%clk 0:00:10.9]} 46... Kg3 {[%clk 0:00:12.9]} 47. d7
{[%clk 0:00:09.8]} 47... Bg5 {[%clk 0:00:13.1]} 48. Ke5 {[%clk 0:00:05.4]} 48...
Kxg2 {[%clk 0:00:10.3]} 49. Kxf5 {[%clk 0:00:05.9]} 49... Bd8 {[%clk 0:00:08.7]}
50. Kxe4 {[%clk 0:00:05.8]} 50... h3 {[%clk 0:00:03.9]} 51. Kf4 {[%clk
0:00:05.8]} 51... h2 {[%clk 0:00:03.4]} 52. Bc6+ {[%clk 0:00:06.7]} 52... Kg1
{[%clk 0:00:03.7]} 53. Kg3 {[%clk 0:00:07.5]} 53... h1=Q {[%clk 0:00:03.8]} 54.
Bxh1 {[%clk 0:00:07.2]} 54... Kxh1 {[%clk 0:00:04.7]} 55. Kh3 {[%clk 0:00:05.8]}
55... Bc7 {[%clk 0:00:02.5]} 56. Kg4 {[%clk 0:00:04.4]} 56... Bd8 {[%clk
0:00:03.4]} 57. Kh3 {[%clk 0:00:04.4]} 57... Kg1 {[%clk 0:00:03.3]} 58. Kg3
{[%clk 0:00:04.8]} 58... Kf1 {[%clk 0:00:04.2]} 59. Kf3 {[%clk 0:00:05.3]} 59...
Ke1 {[%clk 0:00:05.1]} 60. Ke3 {[%clk 0:00:05.7]} 60... Kd1 {[%clk 0:00:06]} 61.
Kd3 {[%clk 0:00:06.1]} 61... Bg5 {[%clk 0:00:05.9]} 62. Ke4 {[%clk 0:00:02.3]}
62... Ke2 {[%clk 0:00:06.1]} 63. Kf5 {[%clk 0:00:02.2]} 63... Bd8 {[%clk
0:00:06]} 64. Ke4 {[%clk 0:00:02.6]} 64... Kf2 {[%clk 0:00:06.2]} 65. Kf4 {[%clk
0:00:03]} 65... Ke2 {[%clk 0:00:06.5]} 66. Ke4 {[%clk 0:00:03.3]} 66... Bg5
{[%clk 0:00:06.3]} 67. Kf5 {[%clk 0:00:03.4]} 67... Bd8 {[%clk 0:00:07.1]} 68.
Ke4 {[%clk 0:00:04.3]} 1/2-1/2

[Event "*** SCC Grand Prix: Titled Tuesday Blitz"]
[Site "Chess.com"]
[Date "2020.06.09"]
[Round "8"]
[White "woodhy"]
[Black "heartofatiger"]
[Result "1/2-1/2"]
[WhiteElo "2467"]
[BlackElo "2590"]
[TimeControl "180+1"]
[EndTime "10:36:58 PDT"]
[Termination "Game drawn - insufficient material"]

1. e4 {[%clk 0:03:00.9]} 1... Nf6 {[%clk 0:02:51.8]} 2. e5 {[%clk 0:02:57.8]}
2... Nd5 {[%clk 0:02:51.6]} 3. d4 {[%clk 0:02:58.7]} 3... d6 {[%clk 0:02:51.4]}
4. Nf3 {[%clk 0:02:58.9]} 4... Bg4 {[%clk 0:02:50.9]} 5. Be2 {[%clk 0:02:58.2]}
5... e6 {[%clk 0:02:51]} 6. O-O {[%clk 0:02:56.5]} 6... Be7 {[%clk 0:02:51.3]}
7. h3 {[%clk 0:02:52]} 7... Bh5 {[%clk 0:02:51.2]} 8. c4 {[%clk 0:02:46.1]} 8...
Nb6 {[%clk 0:02:51]} 9. Bf4 {[%clk 0:02:42.9]} 9... O-O {[%clk 0:02:50.3]} 10.
Nc3 {[%clk 0:02:35.9]} 10... N8d7 {[%clk 0:02:39.6]} 11. b3 {[%clk 0:02:18.6]}
11... a5 {[%clk 0:02:28.2]} 12. Nb5 {[%clk 0:02:09.3]} 12... d5 {[%clk
0:02:19.6]} 13. c5 {[%clk 0:02:04.2]} 13... Nc8 {[%clk 0:02:19.1]} 14. Qd2
{[%clk 0:01:22.1]} 14... Nb8 {[%clk 0:01:36.2]} 15. Rfe1 {[%clk 0:01:02.9]}
15... Nc6 {[%clk 0:01:34]} 16. Bg5 {[%clk 0:01:00.4]} 16... Bxf3 {[%clk
0:01:19.3]} 17. Bxe7 {[%clk 0:00:58.4]} 17... Qxe7 {[%clk 0:01:18.6]} 18. Bxf3
{[%clk 0:00:58.3]} 18... N8a7 {[%clk 0:01:17.9]} 19. Nc3 {[%clk 0:00:52.6]}
19... Qh4 {[%clk 0:01:13.6]} 20. Rad1 {[%clk 0:00:43.9]} 20... b6 {[%clk
0:00:53.5]} 21. cxb6 {[%clk 0:00:19]} 21... cxb6 {[%clk 0:00:54.4]} 22. Be2
{[%clk 0:00:19.3]} 22... Rab8 {[%clk 0:00:52]} 23. Nb5 {[%clk 0:00:18.7]} 23...
Nxb5 {[%clk 0:00:50.3]} 24. Bxb5 {[%clk 0:00:19.6]} 24... Ne7 {[%clk 0:00:44.9]}
25. Rc1 {[%clk 0:00:18.8]} 25... Nf5 {[%clk 0:00:44.6]} 26. Red1 {[%clk
0:00:18.4]} 26... Rfc8 {[%clk 0:00:44.5]} 27. Rxc8+ {[%clk 0:00:17]} 27... Rxc8
{[%clk 0:00:45.4]} 28. Ba6 {[%clk 0:00:17.3]} 28... Rc7 {[%clk 0:00:44.5]} 29.
Bd3 {[%clk 0:00:16.9]} 29... Nxd4 {[%clk 0:00:35.3]} 30. Bxh7+ {[%clk
0:00:16.2]} 30... Kxh7 {[%clk 0:00:34.7]} 31. Qxd4 {[%clk 0:00:17.1]} 31... Qxd4
{[%clk 0:00:34.8]} 32. Rxd4 {[%clk 0:00:18]} 32... Rc1+ {[%clk 0:00:33.4]} 33.
Kh2 {[%clk 0:00:18.1]} 33... Rc2 {[%clk 0:00:32.6]} 34. Rf4 {[%clk 0:00:18.2]}
34... Kg8 {[%clk 0:00:31.3]} 35. a3 {[%clk 0:00:15.5]} 35... Re2 {[%clk
0:00:28.6]} 36. b4 {[%clk 0:00:14.7]} 36... Rxe5 {[%clk 0:00:20.6]} 37. bxa5
{[%clk 0:00:14.3]} 37... bxa5 {[%clk 0:00:21.5]} 38. Ra4 {[%clk 0:00:14.5]}
38... Re2 {[%clk 0:00:21.6]} 39. Kg3 {[%clk 0:00:13.7]} 39... e5 {[%clk
0:00:17]} 40. Rxa5 {[%clk 0:00:13.7]} 40... d4 {[%clk 0:00:17.3]} 41. Rd5 {[%clk
0:00:12.3]} 41... f6 {[%clk 0:00:16.6]} 42. a4 {[%clk 0:00:11]} 42... Ra2 {[%clk
0:00:16.2]} 43. f4 {[%clk 0:00:10.9]} 43... exf4+ {[%clk 0:00:13.2]} 44. Kxf4
{[%clk 0:00:11]} 44... Rxa4 {[%clk 0:00:12.8]} 45. Ke4 {[%clk 0:00:11.5]} 45...
Ra2 {[%clk 0:00:12.5]} 46. g4 {[%clk 0:00:11.3]} 46... Rh2 {[%clk 0:00:12.3]}
47. Rh5 {[%clk 0:00:11.1]} 47... Rd2 {[%clk 0:00:11.3]} 48. Rd5 {[%clk
0:00:10.2]} 48... Rh2 {[%clk 0:00:09.6]} 49. Rh5 {[%clk 0:00:10]} 49... Kf7
{[%clk 0:00:08.9]} 50. Kxd4 {[%clk 0:00:09.6]} 50... g6 {[%clk 0:00:07.4]} 51.
Rh4 {[%clk 0:00:09]} 51... Ke6 {[%clk 0:00:07.2]} 52. Ke4 {[%clk 0:00:09.1]}
52... g5 {[%clk 0:00:06.7]} 53. Rh7 {[%clk 0:00:08.7]} 53... Rf2 {[%clk
0:00:07.2]} 54. Ke3 {[%clk 0:00:08.9]} 54... Rf4 {[%clk 0:00:07]} 55. Rh8 {[%clk
0:00:09.1]} 55... Rf1 {[%clk 0:00:06.3]} 56. Re8+ {[%clk 0:00:08.7]} 56... Kf7
{[%clk 0:00:06.5]} 57. Rh8 {[%clk 0:00:09.6]} 57... Kg7 {[%clk 0:00:06.5]} 58.
Rd8 {[%clk 0:00:08.5]} 58... Re1+ {[%clk 0:00:06.7]} 59. Kf2 {[%clk 0:00:08.1]}
59... Re7 {[%clk 0:00:07]} 60. Rd3 {[%clk 0:00:07.4]} 60... Kg6 {[%clk
0:00:06.9]} 61. Kg3 {[%clk 0:00:07.7]} 61... Re6 {[%clk 0:00:06.5]} 62. Rf3
{[%clk 0:00:07.7]} 62... Re5 {[%clk 0:00:06.3]} 63. h4 {[%clk 0:00:08.1]} 63...
gxh4+ {[%clk 0:00:06.2]} 64. Kxh4 {[%clk 0:00:08.4]} 64... f5 {[%clk 0:00:06.4]}
65. gxf5+ {[%clk 0:00:08.3]} 65... Rxf5 {[%clk 0:00:06.7]} 66. Rxf5 {[%clk
0:00:09.2]} 66... Kxf5 {[%clk 0:00:07.1]} 1/2-1/2

[Event "*** SCC Grand Prix: Titled Tuesday Blitz"]
[Site "Chess.com"]
[Date "2020.06.09"]
[Round "8"]
[White "ketster"]
[Black "attack2mateU"]
[Result "0-1"]
[WhiteElo "2464"]
[BlackElo "2694"]
[TimeControl "180+1"]
[EndTime "10:36:58 PDT"]
[Termination "attack2mateU won by checkmate"]

1. d4 {[%clk 0:03:00.9]} 1... Nf6 {[%clk 0:02:22.9]} 2. c4 {[%clk 0:03:00.1]}
2... g6 {[%clk 0:02:22.9]} 3. Nc3 {[%clk 0:02:58.8]} 3... d5 {[%clk 0:02:23.5]}
4. cxd5 {[%clk 0:02:58.5]} 4... Nxd5 {[%clk 0:02:24.4]} 5. e4 {[%clk 0:02:57.6]}
5... Nxc3 {[%clk 0:02:23.6]} 6. bxc3 {[%clk 0:02:57.7]} 6... Bg7 {[%clk
0:02:24.2]} 7. Nf3 {[%clk 0:02:57.1]} 7... c5 {[%clk 0:02:23.6]} 8. Rb1 {[%clk
0:02:57.2]} 8... O-O {[%clk 0:02:21.9]} 9. Be2 {[%clk 0:02:56.5]} 9... Nc6
{[%clk 0:02:21.8]} 10. d5 {[%clk 0:02:54.9]} 10... Ne5 {[%clk 0:02:22.2]} 11.
Nxe5 {[%clk 0:02:52.4]} 11... Bxe5 {[%clk 0:02:23.1]} 12. Qd2 {[%clk 0:02:51.8]}
12... e6 {[%clk 0:02:21.3]} 13. f4 {[%clk 0:02:49.6]} 13... Bc7 {[%clk
0:02:20.9]} 14. O-O {[%clk 0:02:45]} 14... exd5 {[%clk 0:02:21]} 15. exd5 {[%clk
0:02:44.7]} 15... Ba5 {[%clk 0:02:21.5]} 16. Bf3 {[%clk 0:02:34.4]} 16... Qd6
{[%clk 0:01:59.3]} 17. Rb5 {[%clk 0:02:24.8]} 17... b6 {[%clk 0:01:54.5]} 18.
Rxa5 {[%clk 0:02:20.1]} 18... bxa5 {[%clk 0:01:53.5]} 19. c4 {[%clk 0:02:20.1]}
19... Bf5 {[%clk 0:01:25.4]} 20. Bb2 {[%clk 0:02:17.2]} 20... Rae8 {[%clk
0:01:19]} 21. Be5 {[%clk 0:02:10.5]} 21... Rxe5 {[%clk 0:01:18.3]} 22. fxe5
{[%clk 0:02:09.7]} 22... Qxe5 {[%clk 0:01:19.2]} 23. Re1 {[%clk 0:02:04.2]}
23... Qd6 {[%clk 0:01:07.3]} 24. Qxa5 {[%clk 0:02:03]} 24... Rb8 {[%clk
0:00:42.6]} 25. Qxa7 {[%clk 0:01:27.7]} 25... Rb1 {[%clk 0:00:42.9]} 26. Qa5
{[%clk 0:01:14.1]} 26... Qe5 {[%clk 0:00:37.9]} 27. Rxb1 {[%clk 0:01:11.8]}
27... Qe3+ {[%clk 0:00:35]} 28. Kh1 {[%clk 0:01:07.3]} 28... Bxb1 {[%clk
0:00:35.6]} 29. h3 {[%clk 0:00:54.4]} 29... Qc1+ {[%clk 0:00:32.3]} 30. Kh2
{[%clk 0:00:54.4]} 30... Qxc4 {[%clk 0:00:27.5]} 31. Qd2 {[%clk 0:00:46.5]}
31... Kf8 {[%clk 0:00:09.8]} 32. d6 {[%clk 0:00:45.2]} 32... Qd4 {[%clk
0:00:05.4]} 33. Qxd4 {[%clk 0:00:31.7]} 33... cxd4 {[%clk 0:00:06.3]} 34. Kg3
{[%clk 0:00:31.9]} 34... Ke8 {[%clk 0:00:06.6]} 35. Bc6+ {[%clk 0:00:31.2]}
35... Kd8 {[%clk 0:00:07]} 36. a4 {[%clk 0:00:29.9]} 36... f5 {[%clk 0:00:02.6]}
37. a5 {[%clk 0:00:22.1]} 37... Bd3 {[%clk 0:00:03]} 38. Kf2 {[%clk 0:00:18.4]}
38... Ba6 {[%clk 0:00:02.5]} 39. Ke1 {[%clk 0:00:17.8]} 39... d3 {[%clk
0:00:02.7]} 40. Kd2 {[%clk 0:00:17.7]} 40... f4 {[%clk 0:00:02.9]} 41. h4 {[%clk
0:00:16.2]} 41... h6 {[%clk 0:00:02]} 42. Be4 {[%clk 0:00:16.3]} 42... g5 {[%clk
0:00:02.2]} 43. hxg5 {[%clk 0:00:15.9]} 43... hxg5 {[%clk 0:00:03.1]} 44. Bxd3
{[%clk 0:00:16.3]} 44... Bc8 {[%clk 0:00:03.8]} 45. Bb5 {[%clk 0:00:14.8]} 45...
Bb7 {[%clk 0:00:04]} 46. Bf1 {[%clk 0:00:12.8]} 46... Kd7 {[%clk 0:00:04.1]} 47.
a6 {[%clk 0:00:12.5]} 47... Ba8 {[%clk 0:00:04]} 48. Kd3 {[%clk 0:00:11.2]}
48... Kxd6 {[%clk 0:00:04.5]} 49. Kd4 {[%clk 0:00:11.5]} 49... g4 {[%clk
0:00:04.6]} 50. Kd3 {[%clk 0:00:09.1]} 50... Ke5 {[%clk 0:00:04.6]} 51. Ke2
{[%clk 0:00:08.2]} 51... Kd4 {[%clk 0:00:04.3]} 52. Kf2 {[%clk 0:00:08.2]} 52...
g3+ {[%clk 0:00:04.7]} 53. Kg1 {[%clk 0:00:07.6]} 53... Kc5 {[%clk 0:00:03.4]}
54. Be2 {[%clk 0:00:06.3]} 54... Kb6 {[%clk 0:00:03.8]} 55. Bd3 {[%clk
0:00:05.9]} 55... Bc6 {[%clk 0:00:03.4]} 56. Kf1 {[%clk 0:00:05.9]} 56... Ka7
{[%clk 0:00:03.5]} 57. Ke2 {[%clk 0:00:05.8]} 57... Bxg2 {[%clk 0:00:03.5]} 58.
Ke1 {[%clk 0:00:05.3]} 58... Bd5 {[%clk 0:00:03.6]} 59. Kf1 {[%clk 0:00:05.2]}
59... f3 {[%clk 0:00:03.8]} 60. Kg1 {[%clk 0:00:04.9]} 60... f2+ {[%clk
0:00:03.2]} 61. Kf1 {[%clk 0:00:05.2]} 61... Kb6 {[%clk 0:00:03.6]} 62. Be2
{[%clk 0:00:04.8]} 62... Bc6 {[%clk 0:00:03.9]} 63. Bd3 {[%clk 0:00:04.6]} 63...
Bd7 {[%clk 0:00:03.3]} 64. Be2 {[%clk 0:00:04.5]} 64... Bh3# {[%clk 0:00:02.8]}
0-1

[Event "*** SCC Grand Prix: Titled Tuesday Blitz"]
[Site "Chess.com"]
[Date "2020.06.09"]
[Round "8"]
[White "PetrolulSah"]
[Black "PawnEatingZombie"]
[Result "1-0"]
[WhiteElo "2243"]
[BlackElo "2108"]
[TimeControl "180+1"]
[EndTime "10:36:59 PDT"]
[Termination "PetrolulSah won on time"]

1. d4 {[%clk 0:03:00.9]} 1... d5 {[%clk 0:02:59.2]} 2. Nf3 {[%clk 0:02:50.6]}
2... e6 {[%clk 0:02:58.1]} 3. g3 {[%clk 0:02:50.5]} 3... b5 {[%clk 0:02:57]} 4.
Bg2 {[%clk 0:02:51.4]} 4... Nf6 {[%clk 0:02:54.5]} 5. O-O {[%clk 0:02:52.3]}
5... Bb7 {[%clk 0:02:54.6]} 6. a4 {[%clk 0:02:51.6]} 6... b4 {[%clk 0:02:54.2]}
7. c4 {[%clk 0:02:46.9]} 7... c5 {[%clk 0:02:53.1]} 8. Ne5 {[%clk 0:02:45.9]}
8... Nbd7 {[%clk 0:02:48.5]} 9. a5 {[%clk 0:02:44.5]} 9... Rc8 {[%clk
0:02:40.3]} 10. a6 {[%clk 0:02:41]} 10... Ba8 {[%clk 0:02:39.4]} 11. Qa4 {[%clk
0:02:38]} 11... Be7 {[%clk 0:02:32.5]} 12. Bg5 {[%clk 0:02:37.5]} 12... O-O
{[%clk 0:02:28.7]} 13. e3 {[%clk 0:02:14.7]} 13... cxd4 {[%clk 0:02:22.3]} 14.
exd4 {[%clk 0:02:11.3]} 14... Nb6 {[%clk 0:01:50.6]} 15. Qb5 {[%clk 0:02:10.1]}
15... Nxc4 {[%clk 0:01:44.1]} 16. Nxc4 {[%clk 0:01:46.3]} 16... Rxc4 {[%clk
0:01:38.2]} 17. Nd2 {[%clk 0:01:46.1]} 17... Rc2 {[%clk 0:01:33.9]} 18. b3
{[%clk 0:01:41]} 18... h6 {[%clk 0:01:31.5]} 19. Bxf6 {[%clk 0:01:36.1]} 19...
Bxf6 {[%clk 0:01:29.2]} 20. Nf3 {[%clk 0:01:28.3]} 20... Qc7 {[%clk 0:01:09.2]}
21. Qxb4 {[%clk 0:01:23.9]} 21... Rb8 {[%clk 0:01:07]} 22. Qa3 {[%clk 0:01:19]}
22... Qc3 {[%clk 0:00:50.3]} 23. Rab1 {[%clk 0:00:40.2]} 23... Qc7 {[%clk
0:00:48.8]} 24. Rfc1 {[%clk 0:00:36.7]} 24... Be7 {[%clk 0:00:44.2]} 25. Rxc2
{[%clk 0:00:32]} 25... Qxc2 {[%clk 0:00:43.8]} 26. Qa1 {[%clk 0:00:31.1]} 26...
Bb4 {[%clk 0:00:29]} 27. Rc1 {[%clk 0:00:25.9]} 27... Qxb3 {[%clk 0:00:26.7]}
28. h4 {[%clk 0:00:24.7]} 28... Bd6 {[%clk 0:00:20.6]} 29. Qa5 {[%clk
0:00:16.8]} 29... Qb6 {[%clk 0:00:19.8]} 30. Qxb6 {[%clk 0:00:14.8]} 30... axb6
{[%clk 0:00:18.7]} 31. a7 {[%clk 0:00:14.8]} 31... Rd8 {[%clk 0:00:17]} 32. Bf1
{[%clk 0:00:13.9]} 32... Bb7 {[%clk 0:00:14.6]} 33. Bb5 {[%clk 0:00:13.4]} 33...
Ra8 {[%clk 0:00:13.8]} 34. Ra1 {[%clk 0:00:13.4]} 34... Kf8 {[%clk 0:00:11.4]}
35. Ne5 {[%clk 0:00:13.3]} 35... Bxe5 {[%clk 0:00:11]} 36. dxe5 {[%clk
0:00:13.4]} 36... Ke7 {[%clk 0:00:11.6]} 37. f4 {[%clk 0:00:13.6]} 37... Kd8
{[%clk 0:00:11.1]} 38. Kf2 {[%clk 0:00:13.2]} 38... d4 {[%clk 0:00:11.5]} 39.
Ke2 {[%clk 0:00:12.4]} 39... Be4 {[%clk 0:00:10.9]} 40. Kd2 {[%clk 0:00:11.4]}
40... Kc7 {[%clk 0:00:11]} 41. Ra4 {[%clk 0:00:10.8]} 41... Kb7 {[%clk
0:00:08.8]} 42. Rxd4 {[%clk 0:00:10.8]} 42... Bd5 {[%clk 0:00:07.9]} 43. Bc4
{[%clk 0:00:08.7]} 43... Bxc4 {[%clk 0:00:06.7]} 44. Rxc4 {[%clk 0:00:08.9]}
44... Rxa7 {[%clk 0:00:06.4]} 45. Rd4 {[%clk 0:00:09.1]} 45... Ka6 {[%clk
0:00:04.3]} 46. Rd8 {[%clk 0:00:08.1]} 46... b5 {[%clk 0:00:03.6]} 47. Rg8
{[%clk 0:00:08]} 47... g6 {[%clk 0:00:03.1]} 48. h5 {[%clk 0:00:06.1]} 48...
gxh5 {[%clk 0:00:02.8]} 49. Rh8 {[%clk 0:00:06.4]} 49... Rb7 {[%clk 0:00:03.3]}
50. Rxh6 {[%clk 0:00:06]} 50... b4 {[%clk 0:00:03.8]} 51. Kc2 {[%clk 0:00:05.9]}
51... Kb5 {[%clk 0:00:03.7]} 52. Kb3 {[%clk 0:00:06]} 52... Rc7 {[%clk
0:00:03.9]} 53. Rxh5 {[%clk 0:00:05]} 53... Rc3+ {[%clk 0:00:04.4]} 54. Kb2
{[%clk 0:00:04.9]} 54... Rxg3 {[%clk 0:00:05]} 55. Rh7 {[%clk 0:00:05]} 55...
Kc4 {[%clk 0:00:04]} 56. Rxf7 {[%clk 0:00:04.1]} 56... Rg2+ {[%clk 0:00:04.5]}
57. Kc1 {[%clk 0:00:04]} 57... Kc3 {[%clk 0:00:04.8]} 58. Rc7+ {[%clk 0:00:04]}
58... Kb3 {[%clk 0:00:05.1]} 59. Rc6 {[%clk 0:00:04]} 59... Ka3 {[%clk
0:00:04.3]} 60. Rxe6 {[%clk 0:00:03.3]} 60... b3 {[%clk 0:00:04.3]} 61. Ra6+
{[%clk 0:00:02.6]} 61... Kb4 {[%clk 0:00:04.7]} 62. Rb6+ {[%clk 0:00:02.5]}
62... Kc3 {[%clk 0:00:04.5]} 63. Rc6+ {[%clk 0:00:02.5]} 63... Kd3 {[%clk
0:00:04.2]} 64. Kb1 {[%clk 0:00:02.3]} 64... Ke4 {[%clk 0:00:03.8]} 65. Rc4+
{[%clk 0:00:02.3]} 65... Kf5 {[%clk 0:00:03.3]} 66. Kc1 {[%clk 0:00:02.4]} 66...
b2+ {[%clk 0:00:03.4]} 67. Kb1 {[%clk 0:00:01.8]} 67... Rf2 {[%clk 0:00:02.6]}
68. Rb4 {[%clk 0:00:01.8]} 1-0